fUSD/lending_fUSD_20250606
["ID","MTS","AMOUNT","RATE_DAILY","PERIOD"]
[364680568,1749197474772,-480.0,0.00030493,7]
[364680569,1749197474782,-151.0,0.00030493,7]
[364680570,1749197474791,-473.83522985,0.00030493,7]
[364680571,1749197474801,-151.0,0.00030493,7]
[364680572,1749197474810,-1096.05,0.00030493,7]
[364680573,1749197474819,-151.0,0.00030493,7]
[364680574,1749197474829,-480.0,0.00030493,7]
[364680575,1749197474839,-480.0,0.00030493,7]
[364680576,1749197474848,-152.257674,0.00030493,7]
[364680577,1749197474857,-428.08939245,0.00030493,7]
[364680578,1749197474867,-480.0,0.00030493,7]
[364680579,1749197474876,-480.0,0.00030493,7]
[364680580,1749197474886,-1332.67,0.00030493,7]
[364680581,1749197474896,-728.82,0.00030493,7]
[364680582,1749197474905,-279.345886,0.00030493,7]
[364680583,1749197474915,-494.23,0.00030493,7]
[364680584,1749197474924,-941.87,0.00030493,7]
[364680585,1749197474934,-776.15,0.00030493,7]
[364680586,1749197474943,-151.0,0.00030493,7]
[364680587,1749197474954,-480.0,0.00030493,7]
[364680588,1749197474963,-279.345886,0.00030493,7]
[364680589,1749197474973,-480.0,0.00030493,7]
[364680590,1749197474983,-151.0,0.00030493,7]
[364680591,1749197474992,-1103.59,0.00030493,7]
[364680592,1749197475002,-555.23,0.00030493,7]
[364680593,1749197475012,-480.0,0.00030493,7]
[364680594,1749197475022,-502.92530979,0.00030493,7]
[364680595,1749197475031,-480.0,0.00030493,7]
[364680596,1749197475041,-480.0,0.00030493,7]
[364680597,1749197475050,-480.0,0.00030493,7]
[364680598,1749197475060,-472.13555142,0.00030493,7]
[364680599,1749197475070,-151.0,0.00030493,7]
[364680600,1749197475079,-480.0,0.00030493,7]
[364680601,1749197475089,-480.0,0.00030493,7]
[364680602,1749197475098,-2770.23,0.00030493,7]
[364680603,1749197475108,-480.0,0.00030493,7]
[364680604,1749197475118,-489.92817646,0.00030493,7]
[364680605,1749197475127,-547.4,0.00030493,7]
[364680606,1749197475137,-480.0,0.00030493,7]
[364680607,1749197475147,-490.81977368,0.00030493,7]
[364680608,1749197475157,-480.0,0.00030493,7]
[364680609,1749197475166,-480.0,0.00030493,7]
[364680610,1749197475176,-480.0,0.00030493,7]
[364680611,1749197475186,-480.0,0.00030493,7]
[364680612,1749197475195,-151.0,0.00030493,7]
[364680613,1749197475205,-480.0,0.00030493,7]
[364680614,1749197475215,-151.0,0.00030493,7]
[364680615,1749197475225,-480.0,0.00030493,7]
[364680616,1749197475235,-480.0,0.00030493,7]
[364680617,1749197475244,-529.21,0.00030493,7]
[364680618,1749197475254,-491.51365123,0.00030493,7]
[364680619,1749197475264,-480.0,0.00030493,7]
[364680620,1749197475273,-1231.44,0.00030493,7]
[364680621,1749197475283,-480.0,0.00030493,7]
[364680622,1749197475293,-583.88113699,0.00030493,7]
[364680623,1749197475303,-480.0,0.00030493,7]
[364680624,1749197475313,-480.0,0.00030493,7]
[364680625,1749197475322,-802.64,0.00030493,7]
[364680626,1749197475332,-480.0,0.00030493,7]
[364680627,1749197475342,-495.22871544,0.00030493,7]
[364680628,1749197475352,-400.960197,0.00030493,7]
[364680629,1749197475362,-480.0,0.00030493,7]
[364680630,1749197475372,-480.0,0.00030493,7]
[364680631,1749197475382,-957.68,0.00030493,7]
[364680632,1749197475391,-400.960197,0.00030493,7]
[364680633,1749197475401,-480.0,0.00030493,7]
[364680634,1749197475411,-494.45253343,0.00030493,7]
[364680635,1749197475421,-480.0,0.00030493,7]
[364680636,1749197475432,-264.8104788,0.00030493,7]
[364680637,1749197475443,-490.83,0.00030493,7]
[364680638,1749197475452,-436.80707198,0.00030493,7]
[364680639,1749197475462,-151.0,0.00030493,7]
[364680640,1749197475472,-151.0,0.00030493,7]
[364680641,1749197475482,-151.0,0.00030493,7]
[364680642,1749197475492,-480.0,0.00030493,7]
[364680643,1749197475502,-1326.31,0.00030493,7]
[364680644,1749197475512,-2307.21,0.00030493,7]
[364680645,1749197475521,-480.0,0.00030493,7]
[364680646,1749197475531,-151.0,0.00030493,7]
[364680647,1749197475541,-1012.38,0.00030493,7]
[364680648,1749197475551,-151.0,0.00030493,7]
[364680649,1749197475561,-480.0,0.00030493,7]
[364680650,1749197475571,-658.82,0.00030493,7]
[364680651,1749197475581,-480.0,0.00030493,7]
[364680652,1749197475590,-480.0,0.00030493,7]
[364680653,1749197475600,-480.0,0.00030493,7]
[364680654,1749197475611,-495.92740712,0.00030493,7]
[364680655,1749197475621,-494.47936792,0.00030493,7]
[364680656,1749197475631,-1609.58,0.00030493,7]
[364680657,1749197475640,-480.0,0.00030493,7]
[364680658,1749197475650,-21211.33,0.00030493,7]
[364680659,1749197475661,-1000.0,0.00030493,21]
[364680660,1749197475673,-480.0,0.00030493,7]
[364680661,1749197475682,-480.0,0.00030493,7]
[364680662,1749197475692,-480.0,0.00030493,7]
[364680663,1749197475702,-480.0,0.00030493,7]
[364680664,1749197475712,-1822.56,0.00030493,7]
[364680665,1749197475721,-480.0,0.00030493,7]
[364680666,1749197475731,-491.22652941,0.00030493,7]
[364680667,1749197475743,-2369.76,0.00030493,7]
[364680668,1749197475753,-954.48,0.00030493,7]
[364680669,1749197475763,-480.0,0.00030493,7]
[364680670,1749197475772,-150.0,0.00030493,2]
[364680671,1749197475782,-3344.03,0.00030493,7]
[364680672,1749197475792,-1407.9,0.00030493,7]
[364680673,1749197475802,-1281.857807,0.00030493,7]
[364680674,1749197475811,-480.0,0.00030493,7]
[364680675,1749197475821,-2222.98,0.00030493,7]
[364680676,1749197475831,-1281.857807,0.00030493,7]
[364680677,1749197475841,-636.922133,0.00030493,7]
[364680678,1749197475850,-2210.41,0.00030493,7]
[364680679,1749197475860,-1433.96,0.00030493,7]
[364680680,1749197475870,-1168.31,0.00030493,7]
[364680681,1749197475880,-4772.72720686,0.00030493,2]
[364680682,1749197475889,-480.0,0.00030493,7]
[364680683,1749197475899,-480.0,0.00030493,7]
[364680684,1749197475909,-1333.62,0.00030493,7]
[364680685,1749197475919,-636.922133,0.00030493,7]
[364680686,1749197475928,-4588.71,0.00030493,7]
[364680687,1749197475938,-2119.73,0.00030493,7]
[364680688,1749197475948,-863.97,0.00030493,7]
[364680689,1749197475959,-955.42,0.00030493,7]
[364680690,1749197475969,-151.0,0.00030493,7]
[364680691,1749197475979,-495.76195994,0.00030493,7]
[364680692,1749197475989,-2723.64,0.00030493,7]
[364680693,1749197475999,-480.0,0.00030493,7]
[364680694,1749197476008,-480.0,0.00030493,7]
[364680695,1749197476018,-480.0,0.00030493,7]
[364680696,1749197476028,-244.21473,0.00030493,7]
[364680697,1749197476038,-2057.71,0.00030493,7]
[364680698,1749197476047,-244.21473,0.00030493,7]
[364680699,1749197476057,-830.5,0.00030493,7]
[364680700,1749197476067,-771.51,0.00030493,7]
[364680701,1749197476076,-524.63,0.00030493,7]
[364680702,1749197476087,-244.21473,0.00030493,7]
[364680703,1749197476098,-244.21473,0.00030493,7]
[364680704,1749197476108,-1510.55,0.00030493,7]
[364680705,1749197476118,-480.0,0.00030493,7]
[364680706,1749197476128,-3222.48,0.00030493,7]
[364680707,1749197476137,-2530.07,0.00030493,7]
[364680708,1749197476148,-1178.3,0.00030493,7]
[364680709,1749197476158,-2377.35,0.00030493,7]
[364680710,1749197476168,-4150.0,0.00030493,7]
[364680711,1749197476178,-872.38,0.00030493,7]
[364680712,1749197476188,-480.0,0.00030493,7]
[364680713,1749197476197,-495.27808491,0.00030493,7]
[364680714,1749197476208,-480.0,0.00030493,7]
[364680715,1749197476218,-623.73286546,0.00030493,7]
[364680716,1749197476228,-480.0,0.00030493,7]
[364680717,1749197476238,-258.61886863,0.00030493,7]
[364680718,1749197476248,-1973.05,0.00030493,7]
[364680719,1749197476259,-2396.18,0.00030493,7]
[364680720,1749197476269,-3870.48,0.00030493,7]
[364680721,1749197476279,-1978.82,0.00030493,7]
[364680722,1749197476289,-492.8597847,0.00030493,7]
[364680723,1749197476300,-678.48,0.00030493,7]
[364680724,1749197476309,-2434.52,0.00030493,7]
[364680725,1749197476319,-151.0,0.00030493,7]
[364680726,1749197476328,-639.4,0.00030493,7]
[364680727,1749197476338,-320.522805,0.00030493,7]
[364680728,1749197476348,-2932.21,0.00030493,7]
[364680729,1749197476357,-480.0,0.00030493,7]
[364680730,1749197476367,-480.0,0.00030493,7]
[364680731,1749197476376,-480.0,0.00030493,7]
[364680732,1749197476386,-936.41,0.00030493,7]
[364680733,1749197476395,-539.04,0.00030493,7]
[364680734,1749197476404,-865.76,0.00030493,7]
[364680735,1749197476415,-480.0,0.00030493,7]
[364680736,1749197476424,-480.0,0.00030493,7]
[364680737,1749197476433,-1931.15,0.00030493,7]
[364680738,1749197476443,-480.0,0.00030493,7]
[364680739,1749197476452,-480.0,0.00030493,7]
[364680740,1749197476461,-480.0,0.00030493,7]
[364680741,1749197476647,-480.0,0.00030493,7]
[364680742,1749197476657,-574.808789,0.00030493,7]
[364680743,1749197476671,-1682.34,0.00030493,7]
[364680744,1749197476680,-151.0,0.00030493,7]
[364680745,1749197476690,-1187.82,0.00030493,7]
[364680746,1749197476700,-480.0,0.00030493,7]
[364680747,1749197476711,-2424.75,0.00030493,7]
[364680748,1749197476721,-1758.02,0.00030493,7]
[364680749,1749197476731,-665.52,0.00030493,7]
[364680750,1749197476741,-11346.31,0.00030493,7]
[364680751,1749197476750,-480.0,0.00030493,7]
[364680752,1749197476759,-2151.68,0.00030493,7]
[364680753,1749197476769,-151.0,0.00030493,7]
[364680754,1749197476778,-914.37,0.00030493,7]
[364680755,1749197476788,-251.445257,0.00030493,7]
[364680756,1749197476797,-480.0,0.00030493,7]
[364680757,1749197476807,-152.183462,0.00030493,7]
[364680758,1749197476817,-487.59230166,0.00030493,7]
[364680759,1749197476828,-480.0,0.00030493,7]
[364680760,1749197476837,-5483.59,0.00030493,7]
[364680761,1749197476846,-480.0,0.00030493,7]
[364680762,1749197476856,-1421.96,0.00030493,7]
[364680763,1749197476866,-4390.51,0.00030493,7]
[364680764,1749197476875,-1257.03,0.00030493,7]
[364680765,1749197476885,-614.49,0.00030493,7]
[364680766,1749197476894,-472.22186935,0.00030493,7]
[364680767,1749197476903,-488.14632636,0.00030493,7]
[364680768,1749197476914,-480.0,0.00030493,7]
[364680769,1749197476924,-798.01,0.00030493,30]
[364680770,1749197476934,-480.0,0.00030493,7]
[364680771,1749197476944,-2006.46,0.00030493,7]
[364680772,1749197476954,-480.0,0.00030493,7]
[364680773,1749197476965,-1950.14,0.00030493,7]
[364680774,1749197476975,-1000.0,0.00030493,7]
[364680775,1749197476985,-399.591324,0.00030493,7]
[364680776,1749197476995,-480.0,0.00030493,7]
[364680777,1749197477005,-1739.03,0.00030493,7]
[364680778,1749197477015,-662.65,0.00030493,7]
[364680779,1749197477024,-1412.62,0.00030493,7]
[364680780,1749197477034,-665.09,0.00030493,7]
[364680781,1749197477043,-210.943889,0.00030493,7]
[364680782,1749197477053,-480.0,0.00030493,7]
[364680783,1749197477062,-1527.49,0.00030493,7]
[364680784,1749197477072,-1479.06,0.00030493,7]
[364680785,1749197477081,-2218.6,0.00030493,7]
[364680786,1749197477091,-484.17425303,0.00030493,7]
[364680787,1749197477101,-1061.57,0.00030493,7]
[364680788,1749197477110,-480.0,0.00030493,7]
[364680789,1749197477120,-1908.77,0.00030493,7]
[364680790,1749197477131,-2387.99,0.00030493,7]
[364680791,1749197477141,-480.0,0.00030493,7]
[364680792,1749197477150,-480.0,0.00030493,7]
[364680793,1749197477161,-2685.06,0.00030493,7]
[364680794,1749197477171,-453.537922,0.00030493,7]
[364680795,1749197477181,-1102.24,0.00030493,7]
[364680796,1749197477191,-1166.4,0.00030493,7]
[364680797,1749197477200,-557.21,0.00030493,7]
[364680798,1749197477210,-480.0,0.00030493,7]
[364680799,1749197477220,-480.0,0.00030493,7]
[364680800,1749197477229,-1597.01,0.00030493,7]
[364680801,1749197477239,-453.537922,0.00030493,7]
[364680802,1749197477248,-577.15,0.00030493,7]
[364680803,1749197477257,-480.0,0.00030493,7]
[364680804,1749197477266,-480.0,0.00030493,7]
[364680805,1749197477276,-480.0,0.00030493,7]
[364680806,1749197477288,-151.0,0.00030493,7]
[364680807,1749197477299,-480.0,0.00030493,7]
[364680808,1749197477309,-151.0,0.00030493,7]
[364680809,1749197477319,-298.394027,0.00030493,7]
[364680810,1749197477328,-151.0,0.00030493,7]
[364680811,1749197477338,-2026.78,0.00030493,7]
[364680812,1749197477348,-187.226475,0.00030493,7]
[364680813,1749197477358,-17017.79,0.00030493,7]
[364680814,1749197477368,-1382.41,0.00030493,7]
[364680815,1749197477378,-480.0,0.00030493,7]
[364680816,1749197477388,-819.62,0.00030493,7]
[364680817,1749197477398,-2463.45,0.00030493,7]
[364680818,1749197477408,-2048.22,0.00030493,7]
[364680819,1749197477418,-649.09,0.00030493,7]
[364680820,1749197477428,-480.0,0.00030493,7]
[364680821,1749197477437,-151.0,0.00030493,7]
[364680822,1749197477447,-5024.74,0.00030493,7]
[364680823,1749197477458,-3269.76,0.00030493,7]
[364680824,1749197477468,-2056.04,0.00030493,7]
[364680825,1749197477478,-480.0,0.00030493,7]
[364680826,1749197477487,-480.0,0.00030493,7]
[364680827,1749197477497,-480.0,0.00030493,7]
[364680828,1749197477507,-1907.45,0.00030493,7]
[364680829,1749197477517,-480.0,0.00030493,7]
[364680830,1749197477526,-4171.06,0.00030493,7]
[364680831,1749197477536,-984.05,0.00030493,7]
[364680832,1749197477546,-480.0,0.00030493,7]
[364680833,1749197477555,-2602.39,0.00030493,7]
[364680834,1749197477565,-6201.95,0.00030493,7]
[364680835,1749197477575,-480.0,0.00030493,7]
[364680836,1749197477584,-908.14,0.00030493,7]
[364680837,1749197477594,-2121.81,0.00030493,7]
[364680838,1749197477603,-339.050092,0.00030493,7]
[364680839,1749197477614,-1074.2,0.00030493,7]
[364680840,1749197477623,-238.622857,0.00030493,7]
[364680841,1749197477633,-2106.24,0.00030493,7]
[364680842,1749197477643,-480.0,0.00030493,7]
[364680843,1749197477652,-173.3506,0.00030493,7]
[364680844,1749197477664,-12037.38,0.00030493,7]
[364680845,1749197477675,-2112.72,0.00030493,7]
[364680846,1749197477684,-1527.84,0.00030493,7]
[364680847,1749197477694,-848.41,0.00030493,7]
[364680848,1749197477703,-1014.46,0.00030493,7]
[364680849,1749197477713,-339.050092,0.00030493,7]
[364680850,1749197477722,-480.0,0.00030493,7]
[364680851,1749197477731,-1829.73,0.00030493,7]
[364680852,1749197477742,-480.0,0.00030493,7]
[364680853,1749197477751,-1374.66,0.00030493,7]
[364680854,1749197477760,-480.0,0.00030493,7]
[364680855,1749197477770,-151.0,0.00030493,7]
[364680856,1749197477779,-480.0,0.00030493,7]
[364680857,1749197477789,-3874.69,0.00030493,7]
[364680858,1749197477799,-1526.25,0.00030493,2]
[364680859,1749197477809,-894.72,0.00030493,7]
[364680860,1749197477818,-480.0,0.00030493,7]
[364680861,1749197477827,-480.0,0.00030493,7]
[364680862,1749197477837,-480.0,0.00030493,7]
[364680863,1749197477847,-1071.48,0.00030493,7]
[364680864,1749197477856,-151.0,0.00030493,7]
[364680865,1749197477866,-1415.9,0.00030493,7]
[364680866,1749197477875,-480.0,0.00030493,7]
[364680867,1749197477885,-10675.65,0.00030493,7]
[364680868,1749197477895,-480.0,0.00030493,7]
[364680869,1749197477905,-6223.16,0.00030493,7]
[364680870,1749197477914,-954.54,0.00030493,7]
[364680871,1749197477924,-151.0,0.00030493,7]
[364680872,1749197477933,-480.0,0.00030493,7]
[364680873,1749197477943,-203.528443,0.00030493,7]
[364680874,1749197477953,-1264.89,0.00030493,7]
[364680875,1749197477963,-892.65,0.00030493,7]
[364680876,1749197477972,-229.42916,0.00030493,7]
[364680877,1749197477981,-480.0,0.00030493,7]
[364680878,1749197477993,-1334.57,0.00030493,7]
[364680879,1749197478003,-5244.54,0.00030493,7]
[364680880,1749197478012,-1745.74,0.00030493,7]
[364680881,1749197478022,-690.02,0.00030493,7]
[364680882,1749197478033,-229.42916,0.00030493,7]
[364680883,1749197478043,-480.0,0.00030493,7]
[364680884,1749197478052,-5331.78,0.00030493,7]
[364680885,1749197478063,-480.0,0.00030493,7]
[364680886,1749197478073,-480.0,0.00030493,7]
[364680887,1749197478083,-577.1,0.00030493,7]
[364680888,1749197478093,-1846.69,0.00030493,7]
[364680889,1749197478103,-480.0,0.00030493,7]
[364680890,1749197478113,-480.0,0.00030493,7]
[364680891,1749197478124,-151.0,0.00030493,7]
[364680892,1749197478134,-480.0,0.00030493,7]
[364680893,1749197478143,-417.096075,0.00030493,7]
[364680894,1749197478153,-480.0,0.00030493,7]
[364680895,1749197478163,-480.0,0.00030493,7]
[364680896,1749197478172,-1324.34,0.00030493,7]
[364680897,1749197478182,-482.3023626,0.00030493,7]
[364680898,1749197478192,-480.0,0.00030493,7]
[364680899,1749197478202,-480.0,0.00030493,7]
[364680900,1749197478212,-1485.03,0.00030493,7]
[364680901,1749197478222,-545.88167376,0.00030493,7]
[364680902,1749197478231,-480.0,0.00030493,7]
[364680903,1749197478240,-183.11684,0.00030493,7]
[364680904,1749197478249,-480.0,0.00030493,7]
[364680905,1749197478259,-854.68,0.00030493,7]
[364680906,1749197478269,-480.0,0.00030493,7]
[364680907,1749197478278,-480.0,0.00030493,7]
[364680908,1749197478288,-1593.16,0.00030493,7]
[364680909,1749197478297,-1410.64,0.00030493,7]
[364680910,1749197478307,-1207.83,0.00030493,7]
[364680911,1749197478316,-1613.92,0.00030493,7]
[364680912,1749197478325,-2043.06,0.00030493,7]
[364680913,1749197478335,-480.0,0.00030493,7]
[364680914,1749197478344,-480.0,0.00030493,7]
[364680915,1749197478353,-238.26929,0.00030493,7]
[364680916,1749197478363,-433.36244355,0.00030493,7]
[364680917,1749197478372,-151.0,0.00030493,7]
[364680918,1749197478382,-480.0,0.00030493,7]
[364680919,1749197478391,-480.0,0.00030493,7]
[364680920,1749197478400,-480.0,0.00030493,7]
[364680921,1749197478409,-480.0,0.00030493,7]
[364680922,1749197478419,-1285.47,0.00030493,7]
[364680923,1749197478429,-2497.24,0.00030493,7]
[364680924,1749197478438,-238.26929,0.00030493,7]
[364680925,1749197478448,-480.0,0.00030493,7]
[364680926,1749197478458,-480.0,0.00030493,7]
[364680927,1749197478468,-722.221235,0.00030493,7]
[364680928,1749197478478,-1896.04,0.00030493,7]
[364680929,1749197478487,-732.66,0.00030493,7]
[364680930,1749197478497,-279.15881782,0.00030493,7]
[364680931,1749197478508,-480.0,0.00030493,7]
[364680932,1749197478518,-480.0,0.00030493,7]
[364680933,1749197478529,-1631.58,0.00030493,7]
[364680934,1749197478539,-529.15512062,0.00030493,7]
[364680935,1749197478549,-721.27,0.00030493,7]
[364680936,1749197478559,-1408.84,0.00030493,7]
[364680937,1749197478569,-480.0,0.00030493,7]
[364680938,1749197478580,-735.38,0.00030493,7]
[364680939,1749197478590,-1252.03,0.00030493,7]
[364680940,1749197478599,-749.27,0.00030493,7]
[364680941,1749197478609,-851.11,0.00030493,7]
[364680942,1749197478618,-502.097597,0.00030493,7]
[364680943,1749197478628,-480.0,0.00030493,7]
[364680944,1749197478637,-261.289873,0.00030493,7]
[364680945,1749197478647,-4575.79,0.00030493,7]
[364680946,1749197478657,-1393.37,0.00030493,7]
[364680947,1749197478670,-1003.28,0.00030493,7]
[364680948,1749197478680,-2684.8,0.00030493,7]
[364680949,1749197478690,-502.097597,0.00030493,7]
[364680950,1749197478700,-480.0,0.00030493,7]
[364680951,1749197478716,-1115.23,0.00030493,7]
[364680952,1749197478727,-480.0,0.00030493,7]
[364680953,1749197478738,-480.0,0.00030493,7]
[364680954,1749197478749,-834.567432,0.00030493,7]
[364680955,1749197478760,-480.0,0.00030493,7]
[364680956,1749197478771,-5263.21,0.00030493,7]
[364680957,1749197478782,-18302.03,0.00030493,7]
[364680958,1749197478793,-1151.55,0.00030493,7]
[364680959,1749197478803,-2507.72,0.00030493,7]
[364680960,1749197478813,-151.0,0.00030493,7]
[364680961,1749197478824,-151.0,0.00030493,7]
[364680962,1749197478835,-994.87,0.00030493,7]
[364680963,1749197478845,-496.19,0.00030493,7]
[364680964,1749197478855,-480.0,0.00030493,7]
[364680965,1749197478865,-480.0,0.00030493,7]
[364680966,1749197478875,-953.26,0.00030493,7]
[364680967,1749197478885,-243.92404458,0.00030493,7]
[364680968,1749197478896,-473.16047261,0.00030493,7]
[364680969,1749197478906,-353.255473,0.00030493,7]
[364680970,1749197478915,-480.0,0.00030493,7]
[364680971,1749197478925,-1018.89,0.00030493,7]
[364680972,1749197478936,-522.75,0.00030493,7]
[364680973,1749197478946,-480.0,0.00030493,7]
[364680974,1749197478957,-353.255473,0.00030493,7]
[364680975,1749197478967,-470.55415532,0.00030493,7]
[364680976,1749197478977,-575.03944,0.00030493,7]
[364680977,1749197478988,-1145.19,0.00030493,7]
[364680978,1749197478998,-480.0,0.00030493,7]
[364680979,1749197479007,-480.0,0.00030493,7]
[364680980,1749197479018,-159.604154,0.00030493,7]
[364680981,1749197479028,-586.88,0.00030493,7]
[364680982,1749197479038,-599.66,0.00030493,7]
[364680983,1749197479048,-463.29258942,0.00030493,7]
[364680984,1749197479058,-480.0,0.00030493,7]
[364680985,1749197479068,-823.56,0.00030493,7]
[364680986,1749197479078,-159.604154,0.00030493,7]
[364680987,1749197479088,-642.87,0.00030493,2]
[364680988,1749197479097,-894.81,0.00030493,7]
[364680989,1749197479107,-1357.61,0.00030493,7]
[364680990,1749197479117,-480.0,0.00030493,7]
[364680991,1749197479127,-6519.68,0.00030493,7]
[364680992,1749197479136,-560.12,0.00030493,7]
[364680993,1749197479146,-151.0,0.00030493,7]
[364680994,1749197479155,-151.0,0.00030493,7]
[364680995,1749197479165,-480.0,0.00030493,7]
[364680996,1749197479175,-2372.89,0.00030493,7]
[364680997,1749197479184,-894.02,0.00030493,7]
[364680998,1749197479194,-754.694887,0.00030493,7]
[364680999,1749197479205,-480.0,0.00030493,7]
[364681000,1749197479215,-480.0,0.00030493,7]
[364681001,1749197479225,-480.0,0.00030493,7]
[364681002,1749197479234,-955.94,0.00030493,7]
[364681003,1749197479244,-480.0,0.00030493,7]
[364681004,1749197479254,-480.0,0.00030493,2]
[364681005,1749197479264,-480.0,0.00030493,7]
[364681006,1749197479274,-1367.81,0.00030493,7]
[364681007,1749197479284,-1302.71,0.00030493,7]
[364681008,1749197479294,-981.45,0.00030493,7]
[364681009,1749197479304,-487.50329774,0.00030493,7]
[364681010,1749197479314,-665.71,0.00030493,7]
[364681011,1749197479324,-480.0,0.00030493,7]
[364681012,1749197479334,-23916.37,0.00030493,7]
[364681013,1749197479343,-503.62344121,0.00030493,7]
[364681014,1749197479353,-867.3,0.00030493,7]
[364681015,1749197479363,-481.7728298,0.00030493,7]
[364681016,1749197479373,-914.480056,0.00030493,7]
[364681017,1749197479382,-480.0,0.00030493,7]
[364681018,1749197479392,-502.03,0.00030493,7]
[364681019,1749197479402,-535.31,0.00030493,7]
[364681020,1749197479411,-480.0,0.00030493,7]
[364681021,1749197479420,-480.0,0.00030493,7]
[364681022,1749197479429,-805.19,0.00030493,7]
[364681023,1749197479438,-4366.75,0.00030493,7]
[364681024,1749197479447,-376.0,0.000305,2]
[364681025,1749197479459,-768.0,0.000305,2]
[364681026,1749197479468,-713.0,0.000305,2]
[364681027,1749197479478,-10705.0,0.000305,2]
[364681028,1749197479487,-240.14470147,0.00030522,2]
[364681029,1749197479496,-206.0,0.00030539,2]
[364681030,1749197479506,-211.97137624,0.00030567,23]
[364681031,1749197479516,-506.15890565,0.0003057,2]
[364681032,1749197479525,-2000.0,0.00030599,2]
[364681033,1749197479534,-154.149509,0.000306,7]
[364681034,1749197479544,-151.0,0.000306,7]
[364681035,1749197479553,-151.0,0.000306,7]
[364681036,1749197479563,-151.0,0.000306,7]
[364681037,1749197479572,-150.0,0.000306,7]
[364681038,1749197479581,-249.59327405,0.000306,7]
[364681039,1749197479591,-319.28703344,0.000306,7]
[364681040,1749197479600,-150.0,0.000306,7]
[364681041,1749197479610,-150.0,0.000306,7]
[364681042,1749197479619,-150.0,0.000306,7]
[364681043,1749197479629,-150.0,0.000306,7]
[364681044,1749197479638,-150.0,0.000306,7]
[364681045,1749197479648,-150.0,0.000306,7]
[364681046,1749197479659,-150.0,0.000306,7]
[364681047,1749197479671,-150.0,0.000306,7]
[364681048,1749197479680,-150.0,0.000306,7]
[364681049,1749197479690,-150.0,0.000306,7]
[364681050,1749197479701,-1009.0,0.000306,2]
[364681051,1749197479711,-5004.5717,0.000306,30]
[364681052,1749197479721,-249.59327405,0.00030634,7]
[364681053,1749197479730,-319.28703344,0.00030634,7]
[364681054,1749197479923,-150.0,0.00030639,7]
[364681055,1749197479932,-150.0,0.00030641,7]
[364681056,1749197479942,-500.0,0.00030656,7]
[364681057,1749197479952,-500.0,0.00030656,7]
[364681058,1749197479963,-500.0,0.00030656,7]
[364681059,1749197479975,-151.0,0.00030657,7]
[364681060,1749197479986,-151.0,0.00030657,7]
[364681061,1749197479996,-151.0,0.00030657,7]
[364681062,1749197480007,-151.0,0.00030657,7]
[364681063,1749197480017,-151.0,0.00030657,7]
[364681064,1749197480027,-905.810309,0.00030657,7]
[364681065,1749197480037,-905.810309,0.00030657,7]
[364681066,1749197480046,-151.0,0.00030657,7]
[364681067,1749197480056,-151.0,0.00030657,7]